Cogmind - Beta 10.2 @@@ ROGUE MODE // 2020.12.15 @ 21:03:24 Player: Demise Result: Destroyed by S-10 Pest with Light Assault Rifle Performance ------------- Evolutions (0) 0 Regions Visited (2) 400 Robots Destroyed (29) 145 Value Destroyed (634) 634 Prototype IDs (2) 40 Alien Tech Used (0) 0 Bonus (0) 0 TOTAL SCORE: 1219 Bonus ------- None Cogmind --------- Core Integrity 0/250 Matter 297/300 Energy 149/160 System Corruption 0% Temperature Cool (16) Movement Treading (180) Ox1 Location -10/Mines Parts ------- > --- POWER (1) -------- Light Nuclear Core > --- PROPULSION (2) --- Light Treads Light Treads > --- UTILITY (2) ------ Large Storage Unit High-capacity Storage Unit > --- WEAPON (2) ------- Medium Laser Light Assault Rifle > --- INVENTORY (18) --- Light Treads Improved Heat Sink Cooling System Medium Storage Unit Large Storage Unit Medium Matter Pod (100) Core Shielding Medium Armor Plating Medium Armor Plating Medium Armor Plating Medium Armor Plating Hacking Suite Small Laser Small Laser Small Laser Datajack Mining Laser Peak State ------------ > --- POWER ------------ Light Nuclear Core > --- PROPULSION ------- Light Treads Compact Wheel > --- UTILITY ---------- Large Storage Unit High-capacity Storage Unit > --- WEAPON ----------- Particle Gun Light Assault Rifle > --- INVENTORY -------- Light Treads Light Treads Cooling System Medium Storage Unit Large Storage Unit Medium Matter Pod Medium Armor Plating Medium Armor Plating Medium Armor Plating Medium Armor Plating Hacking Suite Medium Laser Small Laser Small Laser Small Laser Datajack Mining Laser [Rating: 12] Favorites ----------- Power Light Nuclear Core Engine Light Ion Engine Power Core Light Nuclear Core Propulsion Light Treads Treads Light Treads Leg Aluminum Leg Wheel Compact Wheel Utility Large Storage Unit Storage Large Storage Unit Weapon Light Assault Rifle Energy Gun Particle Gun Ballistic Gun Light Assault Rifle Build | -11 -10 -10 ------- Run | Scr Mat Min Slots Evolved . | . . . Power . | . . . Propulsion . | . . . Utility . | . . . Weapon . | . . . Parts Attached 20 | 3 14 3 Power 2 | . 2 . Engine 1 | . 1 . Core 1 | . 1 . Reactor . | . . . Propulsion 6 | 2 3 1 Treads 3 | . 2 1 Leg . | . . . Wheel 3 | 2 1 . Hover . | . . . Flight . | . . . Utility 5 | 1 4 . Device . | . . . Storage 5 | 1 4 . Processor . | . . . Hackware . | . . . Protection . | . . . Artifact . | . . . Weapon 7 | . 5 2 Energy Gun 3 | . 2 1 Energy Cannon . | . . . Ballistic Gun 4 | . 3 1 Ballistic Cannon . | . . . Launcher . | . . . Special Weapon . | . . . Impact Weapon . | . . . Slashing Weapon . | . . . Piercing Weapon . | . . . Special Melee Weapon . | . . . Unidentified Prototypes . | . . . Parts Lost 7 | . 6 1 Power 1 | . 1 . Propulsion 2 | . 2 . Utility . | . . . Weapon 4 | . 3 1 Highest Loss Streak 2 | . 2 1 Average Slot Usage (%) 98 | . 97 99 Engine 7 | . 12 . Core 6 | . 1 14 Treads 12 | . 6 23 Wheel 15 | . 21 4 Storage 28 | . 28 28 Energy Gun 9 | . 8 11 Ballistic Gun 17 | . 18 16 Naked Turns . | . . . Heaviest Build 57 | 13 57 57 Greatest Support 40 | 20 26 40 Greatest Overweight (x) 2 | . 2 2 Average Overweight (x) 1 | . 1 1 Largest Inventory Capacity 18 | 8 18 18 Average Capacity 15 | 7 14 18 Most Carried 18 | 8 18 18 Average Carried 15 | 6 13 17 Final Capacity 18 | 8 18 18 Final Carried 18 | 7 18 17 Class Distribution -------------------- 100% | Mutant Dominant Class ---------------- Mutant | -10/Materials Mutant | -10/Mines Resources | -11 -10 -10 ----------- Run | Scr Mat Min Matter Collected 582 | 233 272 77 Remotely . | . . . Salvage Created 911 | 109 465 337 Parts 57 | 3 35 19 Haulers Intercepted . | . . . Recyclers Shooed . | . . . Parts Field Recycled . | . . . Retrieved Matter . | . . . Parts Self-Destructed . | . . . Prevented . | . . . Kills | -11 -10 -10 ------- Run | Scr Mat Min Combat Hostiles Destroyed 21 | . 12 9 Guns 21 | . 12 9 Classes Destroyed 7 | 2 4 1 Worker 1 | . . 1 Tunneler 1 | 1 . . Recycler 2 | 1 1 . Operator 2 | . 2 . Watcher 2 | . 2 . Swarmer 9 | . 6 3 Grunt 12 | . 6 6 Best Kill Streak 3 | 2 3 2 Combat Bots Only 3 | . 3 2 Max Kills in Single Turn 1 | 1 1 1 Gunslinging . | . . . Exploded . | . . . Melee . | . . . Uniques/NPCs Destroyed . | . . . Combat | -11 -10 -10 -------- Run | Scr Mat Min Damage Taken 1201 | . 709 492 Core 253 | . 169 84 Absorbed by Shields . | . . . Core Remaining (%) 100 | 100 . . Volleys Fired 103 | 3 70 30 Largest 2 | 2 2 2 Hottest 85 | 60 85 85 Shots Fired 186 | 6 120 60 Gun 186 | 6 120 60 Cannon . | . . . Launcher . | . . . Special . | . . . Kinetic 127 | 3 92 32 Thermal 59 | 3 28 28 Explosive . | . . . Electromagnetic . | . . . Robot Hit Streak 15 | 4 10 15 Robot Miss Streak 4 | 1 4 2 Penetration Max . | . . . Secondary Targets 2 | . 1 1 Max Gunslinging Chain 1 | . 1 1 Shots Hit Robots 127 | 5 75 47 Core Hits 55 | 3 31 21 Critical Hits 2 | 1 1 . Critical Kills 1 | 1 . . Critical Parts Destroyed 1 | . 1 . Melee Attacks . | . . . Impact . | . . . Slashing . | . . . Piercing . | . . . Sneak Attacks . | . . . Combat Hostiles . | . . . Follow-up Attacks . | . . . Damage Inflicted 1228 | 45 670 513 Guns 1215 | 45 670 500 Cannons . | . . . Explosions . | . . . Melee . | . . . Ramming 13 | . . 13 Kinetic 658 | 24 435 199 Thermal 557 | 21 235 301 Explosive . | . . . Electromagnetic . | . . . Impact . | . . . Slashing . | . . . Piercing . | . . . Highest Corruption . | . . . Average Corruption . | . . . Corruption Purged . | . . . Overload Shots . | . . . Overflow Damage . | . . . Projectiles . | . . . Explosions . | . . . Melee . | . . . Knockbacks . | . . . Impact . | . . . Kinetic . | . . . Secondary . | . . . Self-Inflicted Damage . | . . . Shots . | . . . Rammed 4 | . . 4 Targets Rammed 4 | . . 4 Kicked . | . . . Crushed . | . . . Highest Temperature 294 | 20 108 294 Average Temperature 75 | 15 41 102 Received Heat Transfer 507 | . 264 243 Siege Activations . | . . . Robots Corrupted . | . . . Combat Hostiles . | . . . Parts Fried . | . . . Impact Corruptions . | . . . Robots Melted . | . . . Combat Hostiles . | . . . Parts Melted 1 | . 1 . Heat Transferred 1339 | 50 549 740 Parts Sabotaged . | . . . Parts Stolen . | . . . Parts Stripped . | . . . Power Chain Reactions . | . . . Missiles Intercepted . | . . . Alert | -11 -10 -10 ------- Run | Scr Mat Min Peak Influence 276 | 10 276 177 Initial 12 | . 6 12 Average 105 | 7 145 43 Maximum Alert Level 1 | . 1 . Low Security (%) 83 | 100 73 100 Level 1 16 | . 26 . Level 2 . | . . . Level 3 . | . . . Level 4 . | . . . Level 5 . | . . . High Security . | . . . Max Security . | . . . Squads Dispatched 3 | . 3 . Investigation 1 | . 1 . Extermination . | . . . Reinforcement 2 | . 2 . Assault . | . . . Garrison . | . . . Intercept . | . . . Construction Impeded . | . . . Haulers Reinforced . | . . . Stealth | -11 -10 -10 --------- Run | Scr Mat Min Distress Signals 2 | . 2 . Communications Jammed . | . . . Distress Signals . | . . . Times Spotted 36 | . 22 14 Peak Tracking Total 5 | . 5 5 Tactical Retreats 3 | . 1 2 Traps | -11 -10 -10 ------- Run | Scr Mat Min Traps Triggered 1 | . 1 . Indirectly . | . . . Trap Hack Attempts . | . . . Triggered . | . . . Disarmed . | . . . Reprogrammed . | . . . Reused . | . . . Traps Extracted . | . . . Installed . | . . . Triggered . | . . . Machines | -11 -10 -10 ---------- Run | Scr Mat Min Machines Disabled . | . . . Max in Single Turn . | . . . Machines Sabotaged . | . . . Garrisons Compromised . | . . . Overloaded Fab Kills . | . . . Fab Network Shutdowns . | . . . Hacking | -11 -10 -10 --------- Run | Scr Mat Min Machines Accessed 9 | . 9 . Terminals 6 | . 6 . Fabricators . | . . . Repair Stations 1 | . 1 . Recycling Units 2 | . 2 . Scanalyzers . | . . . Garrison Access . | . . . Total Hacks 33 | . 33 . Successful 23 | . 23 . Failed 10 | . 10 . Catastrophic . | . . . Database Lockouts . | . . . Manual 21 | . 21 . Terminals 23 | . 23 . Fabricators . | . . . Repair Stations 4 | . 4 . Recycling Units 6 | . 6 . Scanalyzers . | . . . Garrison Access . | . . . Terminal Hacks 10 | . 10 . Part Schematic 1 | . 1 . Robot Analysis 3 | . 3 . Prototype ID Bank 1 | . 1 . Level Access Points 1 | . 1 . Terminal Index 2 | . 2 . Recall Investigation 1 | . 1 . Registered Components 1 | . 1 . Fabricator Hacks . | . . . Repair Station Hacks 4 | . 4 . Scan Component 2 | . 2 . Repair 2 | . 2 . Recycling Unit Hacks 3 | . 3 . Report Inventory 2 | . 2 . Retrieve Components 1 | . 1 . Scanalyzer . | . . . Garrison Access Hacks . | . . . Unauthorized Hacks 6 | . 6 . Terminals 4 | . 4 . Botnet 3 | . 3 . Operators 1 | . 1 . Fabricators . | . . . Repair Stations . | . . . Recycling Units 2 | . 2 . Reject 1 | . 1 . Mask 1 | . 1 . Scanalyzers . | . . . Garrison Access . | . . . Data Cores Recovered . | . . . Used . | . . . Hacking Detections 6 | . 6 . Full Trace Events . | . . . Feedback Events . | . . . Feedback Blocked . | . . . Robot Schematics Acquired . | . . . Robots Built . | . . . Matter . | . . . Time . | . . . Total Robot Build Rating . | . . . Part Schematics Acquired 1 | . 1 . Parts Built . | . . . Matter . | . . . Time . | . . . Total Part Build Rating . | . . . Parts Repaired 2 | . 2 . Time 52 | . 52 . Parts Recycled . | . . . Recycled Matter . | . . . Retrieved Matter . | . . . Retrieved Components 3 | . 3 . Parts Scanalyzed . | . . . Part Schematics Acquired . | . . . Parts Damaged . | . . . Bothacking | -11 -10 -10 ------------ Run | Scr Mat Min Used RIF Installer . | . . . Robots Hacked . | . . . Non-combat . | . . . Combat . | . . . Robot Hacks Applied . | . . . Relay Couplers Released . | . . . Robots Rewired . | . . . Allies Hacked . | . . . Hacks Repelled . | . . . Allies | -11 -10 -10 -------- Run | Scr Mat Min Total Allies . | . . . Largest Group . | . . . Highest-Rated Group . | . . . Highest-Rated Ally . | . . . Total Orders . | . . . Ally Attacks . | . . . Total Damage . | . . . Kills . | . . . Allies Corrupted . | . . . Allies Melted . | . . . Intel | -11 -10 -10 ------- Run | Scr Mat Min Robot Analysis Total 3 | . 3 . Derelict Logs Recovered . | . . . Drone Launches . | . . . Drone Recoveries . | . . . Exploration | -11 -10 -10 ------------- Run | Scr Mat Min Turns Passed 1523 | 43 936 544 Spaces Moved 760 | 27 502 231 Core . | . . . Treads 391 | . 160 231 Legs 21 | 21 . . Wheels 348 | 6 342 . Hover . | . . . Flight . | . . . Fastest Speed 80 | 80 80 180 Average Speed 146 | 111 128 187 Slowest Speed 200 | 120 200 200 Overloaded Moves . | . . . Propulsion Burnouts . | . . . Robots Hopped . | . . . Cave-ins Triggered . | . . . Exploration Rate (%) 41 | 3 86 36 Regions Visited 2 Branch Regions 1 Pre-discovered Areas . | . . . Known Exits Taken . | . . . Unknown Exits Taken 2 | 1 1 . Scrap Searched 1 | . . 1 Spaces Dug . | . . . Terrain Destroyed . | . . . Melee . | . . . Projectile . | . . . AOE . | . . . Terrain Rammed . | . . . Walls Destroyed . | . . . Machines Disabled . | . . . Actions | -11 -10 -10 --------- Run | Scr Mat Min Total 1015 | 34 694 287 Wait 93 | . 77 16 Move 758 | 26 501 231 Hop . | . . . Pick Up 24 | . 23 1 Fast Attach 4 | 2 1 1 Attach 10 | 1 8 1 Detach 2 | 2 . . Swap 6 | . 5 1 Drop 11 | . 9 2 Fire 103 | 3 70 30 Melee . | . . . Ram . | . . . Kick . | . . . Crush 4 | . . 4 Escape Stasis . | . . . Rewire . | . . . Trap . | . . . Miscellaneous . | . . . Route ------- -11/Scrapyard -10/Materials (discovered 5 exits: *Mat x3 / [*Min x2]) -10/Mines (discovered 1 exit: *Mat) History --------- Turn | Location | Event 7 | -11/Scrapyard | Discovered new exit (range 3) 44 | -11/Scrapyard | Entered Materials 279 | -10/Materials | Identified exit to Materials 310 | -10/Materials | Build established: Mutant 369 | -10/Materials | Discovered new exit (range 15) 559 | -10/Materials | Core integrity fell below 50% 808 | -10/Materials | Repaired Lgt. Treads 835 | -10/Materials | Repaired Lgt. Assault Rifle 851 | -10/Materials | Discovered new exit (range 15) 980 | -10/Materials | Entered Mines 1200 | -10/Mines | Discovered exit to Materials (range 11) 1472 | -10/Mines | Core integrity fell below 20% 1524 | -10/Mines | Destroyed by S-10 Pest with Light Assault Rifle Last Messages --------------- 01364_ Dropped Particle Gun. 01365_ Acquired Lgt. Assault Rifle. 01366_ Acquired 10 matter. 01374_ R-06 Scavenger collects Flight Unit. 01421_ K-01 Serf collects debris. 01447_ Slammed into G-34 Mercenary. 01450_ Acquired 2 matter. 01452_ G-34 Mercenary destroyed. 01454_ K-01 Serf collects debris. 01458_ Lgt. Assault Rifle destroyed. 01459_ K-01 Serf collects debris. 01468_ G-34 Mercenary destroyed. 01474_ K-01 Serf collects debris. 01477_ Slammed into G-47 Trooper. 01480_ K-01 Serf collects debris. 01483_ Slammed into G-47 Trooper. 01483_ K-01 Serf collects debris. 01490_ G-47 Trooper destroyed. 01493_ Acquired 8 matter. 01513_ S-10 Pest destroyed. Map ----- +----------------------------------------------------+ | ????????? ????????????????# #?# #????# #??? | | ?????????? ???????????????## ### ##???# #??? | | ??????????? #???????????????### #???# #### | | ???????????? ####?????????????## ### #???# | | ????????????? #?????????????####?# #???###### | | ?????????????? ###???????????????# #????????# | | ???????????????# ???????????????# ######???# | | ????????????????# ????????????????# ##??# | | ?????????????????# ????????????????#### #??# | | ??????????????????# #???????????????????# ##?# | | ??????????????????# #????????????###????# ### | | ???????## ???????# #???????????## ##???# ] # | | ???????# ?????# #??????????## #???## [ | | ???????# #### #??????????# #????## | | ???????# ##?????????# #?????## % | | ????????# ########??# #?????## ! # | | ????????### = = #?## #????## ## | | ??????????## %!%=* #?# ###### ##? | | ???????????# ###%!#?# #?? | | ??????????# #?#[ #?# * #?? | | ???????? ## ##?# ### #### ##?? | | ??????? #?####??# #??## ##??? | | ??????? ## #????????# #??######???? | | ???????? #?# ?######??# ### #???????????? | | ???????? #??# ?# s ###%#?## ##???????????? | | ????????? ????# ??# """ s@ =#??## ###????????????? | | ??????????????# ??# """s#####???# #??????????????? | | ??????????????#???# """ ????????# #??????????????? | | ??????????????????# ?????????# #??????????????? | | ??????????????????# """?????????# #??????????????? | | ??????????????????# ""??????????# #??????????????? | | ??????????????????# ""??????????# #??????????????? | | ??????????????????# ???????????# #??????????????? | | ????????????????????????????????# #??????????????? | | ????????????????????????????????? ???????????????? | | ?????????????????????????????????#???????????????? | | ?????????????????????????????????????????????????? | | ?????????????????????????????????????????????????? | | ?????????????????????????????????????????????????? | | ?????????????????????????????????????????????????? | | ?????????????????????????????????????????????????? | | ?????????????????????????????????????????????????? | | ?????????????????????????????????????????????????? | | ?????????????????????????????????????????????????? | | ?????????????????????????????????????????????????? | | ?????????????????????????????????????????????????? | | ?????????????????????????????????????????????????? | | ?????????????????????????????????????????????????? | | ?????????????????????????????????????????????????? | | ?????????????????????????????????????????????????? | +----------------------------------------------------+ Best States ------------- Heat Dissipation 25 Energy Generation 14 Energy Capacity 250 Matter Stores 300 Matter Capacity 300 Sight Range 16 Terrain Scan Density 10 Evasion (%) 44 Recoil Reduction 2 Item Schematics ----------------- Hcp. Storage Unit | -10/Materials | Hacked Robot Schematics ------------------ None Fabricated ------------ Nothing Alien Tech Used ----------------- None Achievements -------------- None Challenges ------------ None Game ------ Seed TerrabombLightningTearclaws Manual? 0 Play Time 00:15:47 Cumulative 125.8 hours Start 2020.12.15 @ 20:50:10 End 2020.12.15 @ 21:03:24 Sessions 1 Manual Loads 0 Difficulty Rogue Special Mode None Game No. 115 Rogue 115 Adventurer 0 Explorer 0 Win Type - Total 0 Types 0/0/0/0/0/0/0/0/0 Lore% 51 Gallery% 62 Achievement% 53 Wizard Run 0 Options --------- ASCII 0 Keyboard 1 Movement Numpad Keybinds 0 Fullscreen 1 Font 12/Terminus Map View 83x54 Tactical HUD 1 Map Filters NONE Filters NONE Steam 1 RUN: b79ad5fc-0681-49e8-8656-24a1b4b50427